[Event "Titled Tuesday Blitz May 2 Early 2023"]
[White "Eidelman, Gabriel"]
[Black "Nasir, Zehn"]
[WhiteFideId "30910544"]
[BlackFideId "2613239"]
[WhiteElo "2209"]
[BlackElo "1993"]
[Result "0-1"]
[Round "03"]
[TimeControl "180+2"]
[Date "2023.05.02"]
[WhiteClock "0:00:07"]
[BlackClock "0:01:16"]

1. Nf3 {[%clk 0:03:00]}  d5 {[%clk 0:02:58]} 2. e3 {[%clk 0:02:59]}  f5 {[%clk 0:02:55]} 3. b3 {[%clk 0:02:53]}  Nf6 {[%clk 0:02:54]} 4. Bb2 {[%clk 0:02:52]}  e6 {[%clk 0:02:53]} 5. d3 {[%clk 0:02:47]}  Be7 {[%clk 0:02:53]} 6. Nbd2 {[%clk 0:02:46]}  O-O {[%clk 0:02:52]} 7. Be2 {[%clk 0:02:41]}  b6 {[%clk 0:02:52]} 8. O-O {[%clk 0:02:41]}  Bb7 {[%clk 0:02:52]} 9. Ne5 {[%clk 0:02:41]}  Nbd7 {[%clk 0:02:50]} 10. Ndf3 {[%clk 0:02:32]}  c5 {[%clk 0:02:41]} 11. Nxd7 {[%clk 0:02:24]}  Nxd7 {[%clk 0:02:40]} 12. c4 {[%clk 0:02:15]}  Bf6 {[%clk 0:02:38]} 13. Qc2 {[%clk 0:01:49]}  Qe7 {[%clk 0:02:32]} 14. Nd2 {[%clk 0:01:19]}  Rad8 {[%clk 0:02:28]} 15. Bxf6 {[%clk 0:01:17]}  Qxf6 {[%clk 0:02:27]} 16. Bf3 {[%clk 0:01:10]}  Ne5 {[%clk 0:02:27]} 17. Be2 {[%clk 0:01:07]}  d4 {[%clk 0:02:26]} 18. exd4 {[%clk 0:00:58]}  Rxd4 {[%clk 0:02:23]} 19. Rfe1 {[%clk 0:00:48]}  Rfd8 {[%clk 0:02:17]} 20. Nf1 {[%clk 0:00:23]}  Qg5 {[%clk 0:01:37]} 21. Ng3 {[%clk 0:00:20]}  f4 {[%clk 0:01:37]} 22. Ne4 {[%clk 0:00:20]}  Bxe4 {[%clk 0:01:37]} 23. dxe4 {[%clk 0:00:21]}  f3 {[%clk 0:01:37]} 24. Bf1 {[%clk 0:00:19]}  fxg2 {[%clk 0:01:35]} 25. Be2 {[%clk 0:00:17]}  Rd2 {[%clk 0:01:33]} 26. Qc3 {[%clk 0:00:16]}  R8d3 {[%clk 0:01:28]} 27. f4 {[%clk 0:00:07]}  Qxf4 {[%clk 0:01:16]} 28. Bxd3 {[%clk 0:00:07]}  Qf2# {[%clk 0:01:16]} 0-1


[Site "https://www.chess.com"]

[Event "Titled Tuesday Blitz May 2 Early 2023"]
[White "Lopez Gracia, Fernando"]
[Black "Munoz, Francisco Javier"]
[WhiteFideId "2207184"]
[BlackFideId "128368"]
[WhiteElo "2255"]
[BlackElo "2383"]
[Result "0-1"]
[Round "03"]
[TimeControl "180+2"]
[Date "2023.05.02"]
[WhiteClock "0:01:17"]
[BlackClock "0:01:33"]

1. d4 {[%clk 0:03:00]}  d5 {[%clk 0:02:59]} 2. c4 {[%clk 0:03:00]}  e6 {[%clk 0:03:00]} 3. Nf3 {[%clk 0:02:58]}  Nf6 {[%clk 0:03:00]} 4. g3 {[%clk 0:02:57]}  Ne4 {[%clk 0:02:59]} 5. cxd5 {[%clk 0:02:52]}  exd5 {[%clk 0:02:59]} 6. Nbd2 {[%clk 0:02:53]}  f5 {[%clk 0:02:58]} 7. Bg2 {[%clk 0:02:52]}  Bd6 {[%clk 0:02:58]} 8. O-O {[%clk 0:02:52]}  O-O {[%clk 0:02:59]} 9. Ne5 {[%clk 0:02:52]}  c6 {[%clk 0:02:57]} 10. f3 {[%clk 0:02:51]}  Qb6 {[%clk 0:02:49]} 11. Nb3 {[%clk 0:02:45]}  Bxe5 {[%clk 0:02:48]} 12. fxe4 {[%clk 0:02:45]}  fxe4 {[%clk 0:02:45]} 13. Rxf8+ {[%clk 0:02:37]}  Kxf8 {[%clk 0:02:46]} 14. Bg5 {[%clk 0:02:32]}  Be6 {[%clk 0:02:43]} 15. Qf1+ {[%clk 0:02:30]}  Kg8 {[%clk 0:02:43]} 16. e3 {[%clk 0:02:30]}  Bd6 {[%clk 0:02:41]} 17. Bf4 {[%clk 0:02:30]}  Bxf4 {[%clk 0:02:40]} 18. Qxf4 {[%clk 0:02:31]}  Nd7 {[%clk 0:02:40]} 19. Qd6 {[%clk 0:02:28]}  Re8 {[%clk 0:02:37]} 20. Rf1 {[%clk 0:02:28]}  Qd8 {[%clk 0:02:20]} 21. Rf4 {[%clk 0:02:14]}  Nf6 {[%clk 0:01:52]} 22. Qxd8 {[%clk 0:02:02]}  Rxd8 {[%clk 0:01:51]} 23. Nc5 {[%clk 0:02:03]}  Bc8 {[%clk 0:01:51]} 24. Bf1 {[%clk 0:02:02]}  b6 {[%clk 0:01:49]} 25. Nb3 {[%clk 0:01:58]}  Ng4 {[%clk 0:01:48]} 26. Be2 {[%clk 0:01:24]}  Nxe3 {[%clk 0:01:47]} 27. Kf2 {[%clk 0:01:23]}  Nf5 {[%clk 0:01:36]} 28. Bg4 {[%clk 0:01:22]}  Nd6 {[%clk 0:01:36]} 29. Bxc8 {[%clk 0:01:19]}  Rxc8 {[%clk 0:01:37]} 30. Nd2 {[%clk 0:01:19]}  Rf8 {[%clk 0:01:37]} 31. Ke3 {[%clk 0:01:19]}  Nf5+ {[%clk 0:01:33]} 32. Ke2 {[%clk 0:01:17]}  Nxd4+ {[%clk 0:01:33]} 0-1


[Site "https://www.chess.com"]

[Event "Titled Tuesday Blitz May 2 Early 2023"]
[White "Djokic, Mihailo"]
[Black "Stanojevic, Ilija"]
[WhiteFideId "976440"]
[BlackFideId "959995"]
[WhiteElo "2294"]
[BlackElo "2138"]
[Result "1-0"]
[Round "03"]
[TimeControl "180+2"]
[Date "2023.05.02"]
[WhiteClock "0:01:17"]
[BlackClock "0:00:03"]

1. e4 {[%clk 0:03:00]}  e5 {[%clk 0:02:57]} 2. Nf3 {[%clk 0:03:00]}  Nc6 {[%clk 0:02:57]} 3. Nc3 {[%clk 0:03:00]}  Nf6 {[%clk 0:02:57]} 4. Bb5 {[%clk 0:03:00]}  Nd4 {[%clk 0:02:58]} 5. Nxd4 {[%clk 0:03:00]}  exd4 {[%clk 0:02:57]} 6. e5 {[%clk 0:03:00]}  c6 {[%clk 0:02:33]} 7. exf6 {[%clk 0:02:54]}  Qxf6 {[%clk 0:02:22]} 8. Qe2+ {[%clk 0:02:46]}  Qe7 {[%clk 0:02:09]} 9. Ne4 {[%clk 0:02:28]}  cxb5 {[%clk 0:02:00]} 10. O-O {[%clk 0:02:25]}  Kd8 {[%clk 0:01:37]} 11. Qd3 {[%clk 0:01:36]}  d5 {[%clk 0:01:25]} 12. Ng3 {[%clk 0:01:36]}  Be6 {[%clk 0:01:23]} 13. b3 {[%clk 0:01:33]}  Qf6 {[%clk 0:01:00]} 14. Bb2 {[%clk 0:01:32]}  Bc5 {[%clk 0:00:57]} 15. Qxb5 {[%clk 0:01:33]}  Bb6 {[%clk 0:00:41]} 16. a4 {[%clk 0:01:33]}  Qe7 {[%clk 0:00:20]} 17. a5 {[%clk 0:01:33]}  Qc5 {[%clk 0:00:20]} 18. Qd3 {[%clk 0:01:28]}  Bc7 {[%clk 0:00:15]} 19. Bxd4 {[%clk 0:01:28]}  Qd6 {[%clk 0:00:14]} 20. Bxg7 {[%clk 0:01:29]}  Rg8 {[%clk 0:00:11]} 21. Bf6+ {[%clk 0:01:29]}  Kd7 {[%clk 0:00:11]} 22. Rfe1 {[%clk 0:01:28]}  h5 {[%clk 0:00:08]} 23. Be5 {[%clk 0:01:29]}  Qc5 {[%clk 0:00:08]} 24. Bxc7 {[%clk 0:01:29]}  Qxc7 {[%clk 0:00:09]} 25. Qd4 {[%clk 0:01:27]}  h4 {[%clk 0:00:08]} 26. Qxh4 {[%clk 0:01:27]}  Rh8 {[%clk 0:00:07]} 27. Qf6 {[%clk 0:01:27]}  Rag8 {[%clk 0:00:07]} 28. c4 {[%clk 0:01:20]}  dxc4 {[%clk 0:00:06]} 29. bxc4 {[%clk 0:01:21]}  Qxc4 {[%clk 0:00:04]} 30. Rac1 {[%clk 0:01:21]}  Qh4 {[%clk 0:00:02]} 31. Qxh4 {[%clk 0:01:17]}  Rxh4 {[%clk 0:00:03]} 32. Ne4 {[%clk 0:01:17]} 1-0


[Site "https://www.chess.com"]

[Event "Titled Tuesday Blitz May 2 Early 2023"]
[White "Korchmar, Vasiliy"]
[Black "Srebrnic, Marko"]
[WhiteFideId "24131750"]
[BlackFideId "14603616"]
[WhiteElo "2370"]
[BlackElo "2341"]
[Result "1-0"]
[Round "03"]
[TimeControl "180+2"]
[Date "2023.05.02"]
[WhiteClock "0:01:50"]
[BlackClock "0:00:19"]

1. e4 {[%clk 0:03:00]}  c5 {[%clk 0:02:59]} 2. Nf3 {[%clk 0:03:00]}  Nc6 {[%clk 0:02:58]} 3. d4 {[%clk 0:03:01]}  cxd4 {[%clk 0:02:59]} 4. Nxd4 {[%clk 0:03:02]}  e5 {[%clk 0:02:59]} 5. Nb5 {[%clk 0:03:01]}  d6 {[%clk 0:03:00]} 6. c4 {[%clk 0:03:01]}  Be7 {[%clk 0:02:59]} 7. Bd3 {[%clk 0:03:01]}  Be6 {[%clk 0:02:59]} 8. O-O {[%clk 0:03:01]}  Rc8 {[%clk 0:02:58]} 9. N1c3 {[%clk 0:02:56]}  a6 {[%clk 0:02:58]} 10. Na3 {[%clk 0:02:57]}  Bg5 {[%clk 0:02:57]} 11. Nd5 {[%clk 0:02:53]}  Bxc1 {[%clk 0:02:56]} 12. Rxc1 {[%clk 0:02:53]}  Nge7 {[%clk 0:02:43]} 13. Qb3 {[%clk 0:02:27]}  b5 {[%clk 0:01:41]} 14. cxb5 {[%clk 0:02:23]}  Nd4 {[%clk 0:01:35]} 15. Qa4 {[%clk 0:02:14]}  Nxd5 {[%clk 0:01:30]} 16. Rxc8 {[%clk 0:02:07]}  Qxc8 {[%clk 0:01:23]} 17. exd5 {[%clk 0:02:07]}  Bxd5 {[%clk 0:01:23]} 18. bxa6+ {[%clk 0:01:56]}  Bc6 {[%clk 0:01:22]} 19. Qb4 {[%clk 0:01:52]}  Qg4 {[%clk 0:01:00]} 20. Qb8+ {[%clk 0:01:51]}  Kd7 {[%clk 0:00:50]} 21. Qa7+ {[%clk 0:01:51]}  Ke6 {[%clk 0:00:48]} 22. f3 {[%clk 0:01:52]}  Nxf3+ {[%clk 0:00:26]} 23. Kh1 {[%clk 0:01:52]}  Nh4 {[%clk 0:00:19]} 24. Qxf7# {[%clk 0:01:50]} 1-0


[Site "https://www.chess.com"]

[Event "Titled Tuesday Blitz May 2 Early 2023"]
[White "Ljukin, Sergei"]
[Black "Shyaamnikhil P"]
[WhiteFideId "14102200"]
[BlackFideId "5024218"]
[WhiteElo "2312"]
[BlackElo "2389"]
[Result "0-1"]
[Round "03"]
[TimeControl "180+2"]
[Date "2023.05.02"]
[WhiteClock "0:00:13"]
[BlackClock "0:01:03"]

1. e4 {[%clk 0:02:56]}  c5 {[%clk 0:02:18]} 2. Nf3 {[%clk 0:02:54]}  Nc6 {[%clk 0:02:17]} 3. d4 {[%clk 0:02:54]}  cxd4 {[%clk 0:02:18]} 4. Nxd4 {[%clk 0:02:55]}  e5 {[%clk 0:02:19]} 5. Nb5 {[%clk 0:02:54]}  a6 {[%clk 0:02:19]} 6. Nd6+ {[%clk 0:02:54]}  Bxd6 {[%clk 0:02:20]} 7. Qxd6 {[%clk 0:02:54]}  Qe7 {[%clk 0:02:21]} 8. Qxe7+ {[%clk 0:02:53]}  Ngxe7 {[%clk 0:02:22]} 9. Nc3 {[%clk 0:02:53]}  Nb4 {[%clk 0:02:19]} 10. Kd1 {[%clk 0:02:52]}  d6 {[%clk 0:02:18]} 11. a3 {[%clk 0:02:39]}  Nbc6 {[%clk 0:02:18]} 12. Be3 {[%clk 0:02:22]}  Be6 {[%clk 0:02:13]} 13. Bd3 {[%clk 0:01:56]}  O-O-O {[%clk 0:01:58]} 14. Ke2 {[%clk 0:01:50]}  d5 {[%clk 0:01:58]} 15. exd5 {[%clk 0:01:50]}  Nxd5 {[%clk 0:01:57]} 16. Nxd5 {[%clk 0:01:50]}  Bxd5 {[%clk 0:01:57]} 17. f3 {[%clk 0:01:49]}  g6 {[%clk 0:01:57]} 18. Rhd1 {[%clk 0:01:24]}  f5 {[%clk 0:01:54]} 19. Bb6 {[%clk 0:01:13]}  Rd7 {[%clk 0:01:54]} 20. c4 {[%clk 0:01:00]}  Be6 {[%clk 0:01:47]} 21. b4 {[%clk 0:01:00]}  Re8 {[%clk 0:01:44]} 22. Kf2 {[%clk 0:00:56]}  Nd4 {[%clk 0:01:27]} 23. b5 {[%clk 0:00:48]}  Bf7 {[%clk 0:01:17]} 24. a4 {[%clk 0:00:30]}  e4 {[%clk 0:01:09]} 25. bxa6 {[%clk 0:00:27]}  bxa6 {[%clk 0:01:05]} 26. fxe4 {[%clk 0:00:15]}  fxe4 {[%clk 0:01:06]} 27. Be2 {[%clk 0:00:15]}  e3+ {[%clk 0:01:04]} 28. Kf1 {[%clk 0:00:13]}  Nxe2 {[%clk 0:01:04]} 29. Kxe2 {[%clk 0:00:13]}  Bxc4+ {[%clk 0:01:03]} 30. Ke1 {[%clk 0:00:13]}  Rf7 {[%clk 0:01:03]} 0-1


[Site "https://www.chess.com"]

[Event "Titled Tuesday Blitz May 2 Early 2023"]
[White "Vaibhav Jayant Raut"]
[Black "Seletsky, Grigory"]
[WhiteFideId "5089034"]
[BlackFideId "14112191"]
[WhiteElo "2156"]
[BlackElo "2490"]
[Result "1/2-1/2"]
[Round "03"]
[TimeControl "180+2"]
[Date "2023.05.02"]
[WhiteClock "0:00:10"]
[BlackClock "0:00:10"]

1. Nf3 {[%clk 0:02:59]}  d5 {[%clk 0:02:59]} 2. g3 {[%clk 0:02:58]}  c6 {[%clk 0:02:59]} 3. d3 {[%clk 0:02:58]}  Nf6 {[%clk 0:02:59]} 4. Bg2 {[%clk 0:02:58]}  Bf5 {[%clk 0:02:59]} 5. O-O {[%clk 0:02:59]}  e6 {[%clk 0:02:59]} 6. Nbd2 {[%clk 0:02:59]}  h6 {[%clk 0:02:59]} 7. b3 {[%clk 0:03:00]}  Be7 {[%clk 0:02:58]} 8. Bb2 {[%clk 0:03:00]}  O-O {[%clk 0:02:59]} 9. Re1 {[%clk 0:03:00]}  Bh7 {[%clk 0:02:58]} 10. a4 {[%clk 0:03:00]}  Nbd7 {[%clk 0:02:57]} 11. e4 {[%clk 0:03:01]}  a5 {[%clk 0:02:50]} 12. Qe2 {[%clk 0:03:01]}  Bb4 {[%clk 0:02:48]} 13. Red1 {[%clk 0:03:00]}  Qb6 {[%clk 0:02:46]} 14. h4 {[%clk 0:02:58]}  Rfd8 {[%clk 0:02:44]} 15. Ne5 {[%clk 0:02:52]}  Bxd2 {[%clk 0:02:28]} 16. Nxd7 {[%clk 0:02:45]}  Nxd7 {[%clk 0:02:26]} 17. Rxd2 {[%clk 0:02:45]}  d4 {[%clk 0:02:21]} 18. f4 {[%clk 0:02:40]}  c5 {[%clk 0:02:19]} 19. Rf1 {[%clk 0:02:38]}  Qc7 {[%clk 0:01:55]} 20. Bc1 {[%clk 0:02:18]}  Re8 {[%clk 0:01:53]} 21. Qf3 {[%clk 0:02:14]}  Rad8 {[%clk 0:01:50]} 22. Rdf2 {[%clk 0:02:13]}  b6 {[%clk 0:01:49]} 23. g4 {[%clk 0:02:06]}  e5 {[%clk 0:01:43]} 24. f5 {[%clk 0:02:04]}  Kh8 {[%clk 0:01:32]} 25. g5 {[%clk 0:02:01]}  Qc6 {[%clk 0:01:32]} 26. Qh5 {[%clk 0:01:56]}  Rg8 {[%clk 0:01:31]} 27. gxh6 {[%clk 0:01:19]}  gxh6 {[%clk 0:01:27]} 28. f6 {[%clk 0:01:06]}  Rg6 {[%clk 0:01:23]} 29. Bxh6 {[%clk 0:01:00]}  Nxf6 {[%clk 0:01:20]} 30. Rxf6 {[%clk 0:00:54]}  Rxf6 {[%clk 0:01:20]} 31. Rxf6 {[%clk 0:00:54]}  Qxf6 {[%clk 0:01:17]} 32. Bg5 {[%clk 0:00:54]}  Qd6 {[%clk 0:01:09]} 33. Bxd8 {[%clk 0:00:45]}  Qxd8 {[%clk 0:01:10]} 34. Qxe5+ {[%clk 0:00:42]}  f6 {[%clk 0:01:08]} 35. Qh5 {[%clk 0:00:30]}  Qd6 {[%clk 0:01:06]} 36. Qe8+ {[%clk 0:00:28]}  Kg7 {[%clk 0:01:06]} 37. h5 {[%clk 0:00:18]}  Qf4 {[%clk 0:01:04]} 38. Qe7+ {[%clk 0:00:16]}  Kg8 {[%clk 0:00:57]} 39. Qe6+ {[%clk 0:00:14]}  Kg7 {[%clk 0:00:56]} 40. Qh3 {[%clk 0:00:15]}  Qc1+ {[%clk 0:00:53]} 41. Kh2 {[%clk 0:00:15]}  Kh6 {[%clk 0:00:48]} 42. Qh4 {[%clk 0:00:12]}  Qg5 {[%clk 0:00:44]} 43. Qxg5+ {[%clk 0:00:08]}  Kxg5 {[%clk 0:00:44]} 44. Kg3 {[%clk 0:00:07]}  Bg8 {[%clk 0:00:39]} 45. Bf3 {[%clk 0:00:02]}  Bf7 {[%clk 0:00:39]} 46. h6 {[%clk 0:00:01]}  Bg6 {[%clk 0:00:33]} 47. Bg4 {[%clk 0:00:01]}  Bh7 {[%clk 0:00:15]} 48. Bh3 {[%clk 0:00:01]}  Bg6 {[%clk 0:00:13]} 49. Be6 {[%clk 0:00:02]}  Bh7 {[%clk 0:00:11]} 50. Bf7 {[%clk 0:00:02]}  Kxh6 {[%clk 0:00:11]} 51. Kf4 {[%clk 0:00:03]}  Kg7 {[%clk 0:00:11]} 52. Be6 {[%clk 0:00:03]}  Kf8 {[%clk 0:00:11]} 53. Bf5 {[%clk 0:00:04]}  Bg8 {[%clk 0:00:09]} 54. e5 {[%clk 0:00:04]}  Ke7 {[%clk 0:00:08]} 55. Bg4 {[%clk 0:00:04]}  fxe5+ {[%clk 0:00:07]} 56. Kxe5 {[%clk 0:00:05]}  Bf7 {[%clk 0:00:07]} 57. Bf3 {[%clk 0:00:05]}  Bg8 {[%clk 0:00:06]} 58. Bd5 {[%clk 0:00:05]}  Bxd5 {[%clk 0:00:06]} 59. Kxd5 {[%clk 0:00:06]}  Kd7 {[%clk 0:00:06]} 60. Ke5 {[%clk 0:00:07]}  Ke7 {[%clk 0:00:07]} 61. Kf5 {[%clk 0:00:07]}  Kf7 {[%clk 0:00:07]} 62. Kg5 {[%clk 0:00:07]}  Kg7 {[%clk 0:00:07]} 63. Kf5 {[%clk 0:00:07]}  Kf7 {[%clk 0:00:08]} 64. Kf4 {[%clk 0:00:08]}  Kf6 {[%clk 0:00:08]} 65. Ke4 {[%clk 0:00:08]}  Ke6 {[%clk 0:00:08]} 66. Kf4 {[%clk 0:00:09]}  Kf6 {[%clk 0:00:09]} 67. Ke4 {[%clk 0:00:09]}  Ke6 {[%clk 0:00:10]} 68. Kf4 {[%clk 0:00:10]}  Kf6 {[%clk 0:00:10]} 1/2-1/2


[Site "https://www.chess.com"]

[Event "Titled Tuesday Blitz May 2 Early 2023"]
[White "Bochnicka, Vladimir"]
[Black "Mamedov, Edgar"]
[WhiteFideId "14943450"]
[BlackFideId "13739980"]
[WhiteElo "2094"]
[BlackElo "2330"]
[Result "1-0"]
[Round "03"]
[TimeControl "180+2"]
[Date "2023.05.02"]
[WhiteClock "0:00:17"]
[BlackClock "0:00:01"]

1. e4 {[%clk 0:03:00]}  c5 {[%clk 0:02:58]} 2. Nf3 {[%clk 0:02:59]}  e6 {[%clk 0:02:59]} 3. g3 {[%clk 0:02:58]}  Nc6 {[%clk 0:02:58]} 4. Bg2 {[%clk 0:02:57]}  Nf6 {[%clk 0:02:58]} 5. d3 {[%clk 0:02:54]}  d6 {[%clk 0:02:58]} 6. O-O {[%clk 0:02:54]}  Be7 {[%clk 0:02:58]} 7. Re1 {[%clk 0:02:52]}  O-O {[%clk 0:02:57]} 8. c3 {[%clk 0:02:51]}  Bd7 {[%clk 0:02:51]} 9. d4 {[%clk 0:02:48]}  cxd4 {[%clk 0:02:51]} 10. cxd4 {[%clk 0:02:48]}  d5 {[%clk 0:02:43]} 11. e5 {[%clk 0:02:43]}  Ne4 {[%clk 0:02:39]} 12. Nbd2 {[%clk 0:02:41]}  Nxd2 {[%clk 0:02:38]} 13. Bxd2 {[%clk 0:02:41]}  Qb6 {[%clk 0:02:38]} 14. Bc3 {[%clk 0:02:27]}  g6 {[%clk 0:02:36]} 15. a3 {[%clk 0:02:20]}  a5 {[%clk 0:02:34]} 16. h4 {[%clk 0:02:10]}  Na7 {[%clk 0:02:25]} 17. Nh2 {[%clk 0:02:00]}  Nb5 {[%clk 0:02:21]} 18. Qd2 {[%clk 0:01:48]}  Nxc3 {[%clk 0:02:20]} 19. Qxc3 {[%clk 0:01:49]}  Rac8 {[%clk 0:02:17]} 20. Qd2 {[%clk 0:01:49]}  Ba4 {[%clk 0:02:15]} 21. Ng4 {[%clk 0:01:41]}  h5 {[%clk 0:02:11]} 22. Nf6+ {[%clk 0:01:38]}  Bxf6 {[%clk 0:02:10]} 23. exf6 {[%clk 0:01:39]}  Kh7 {[%clk 0:02:09]} 24. Re5 {[%clk 0:01:35]}  Bc2 {[%clk 0:01:41]} 25. Bf3 {[%clk 0:01:34]}  Bf5 {[%clk 0:01:40]} 26. Bxh5 {[%clk 0:01:25]}  Rc2 {[%clk 0:01:23]} 27. Qf4 {[%clk 0:01:22]}  Qxb2 {[%clk 0:01:04]} 28. Rae1 {[%clk 0:01:02]}  Rd2 {[%clk 0:00:43]} 29. Rxf5 {[%clk 0:01:01]}  Qxd4 {[%clk 0:00:29]} 30. Qg5 {[%clk 0:00:51]}  Rg8 {[%clk 0:00:16]} 31. Rf4 {[%clk 0:00:39]}  Qc5 {[%clk 0:00:09]} 32. Rxe6 {[%clk 0:00:30]}  fxe6 {[%clk 0:00:03]} 33. f7 {[%clk 0:00:29]}  Rg7 {[%clk 0:00:02]} 34. f8=Q {[%clk 0:00:21]}  Qc1+ {[%clk 0:00:02]} 35. Kg2 {[%clk 0:00:19]}  Rd1 {[%clk 0:00:01]} 36. Qxg6+ {[%clk 0:00:16]}  Rxg6 {[%clk 0:00:01]} 37. Rf7+ {[%clk 0:00:17]} 1-0


[Site "https://www.chess.com"]

[Event "Titled Tuesday Blitz May 2 Early 2023"]
[White "Malek, Jan"]
[Black "Womacka, Mathias"]
[WhiteFideId "21864080"]
[BlackFideId "4611390"]
[WhiteElo "2255"]
[BlackElo "2377"]
[Result "1-0"]
[Round "03"]
[TimeControl "180+2"]
[Date "2023.05.02"]
[WhiteClock "0:01:26"]
[BlackClock "0:00:11"]

1. f4 {[%clk 0:02:58]}  c5 {[%clk 0:02:59]} 2. Nf3 {[%clk 0:02:57]}  g6 {[%clk 0:02:58]} 3. g3 {[%clk 0:02:58]}  Bg7 {[%clk 0:02:57]} 4. Bg2 {[%clk 0:02:58]}  d5 {[%clk 0:02:54]} 5. O-O {[%clk 0:02:58]}  Nc6 {[%clk 0:02:52]} 6. Nc3 {[%clk 0:02:57]}  Nf6 {[%clk 0:02:46]} 7. d3 {[%clk 0:02:57]}  d4 {[%clk 0:02:44]} 8. Ne4 {[%clk 0:02:57]}  Nxe4 {[%clk 0:02:44]} 9. dxe4 {[%clk 0:02:57]}  e5 {[%clk 0:02:43]} 10. e3 {[%clk 0:02:56]}  O-O {[%clk 0:02:34]} 11. exd4 {[%clk 0:02:52]}  cxd4 {[%clk 0:02:28]} 12. Qe2 {[%clk 0:02:39]}  Be6 {[%clk 0:02:14]} 13. f5 {[%clk 0:02:35]}  gxf5 {[%clk 0:02:13]} 14. Ng5 {[%clk 0:02:35]}  f4 {[%clk 0:01:55]} 15. gxf4 {[%clk 0:02:29]}  exf4 {[%clk 0:01:36]} 16. Qh5 {[%clk 0:02:21]}  h6 {[%clk 0:01:33]} 17. Nxe6 {[%clk 0:02:20]}  fxe6 {[%clk 0:01:34]} 18. Bxf4 {[%clk 0:02:20]}  Qe8 {[%clk 0:01:24]} 19. Qg4 {[%clk 0:02:11]}  Kh8 {[%clk 0:01:19]} 20. Kh1 {[%clk 0:02:07]}  Rf6 {[%clk 0:01:00]} 21. e5 {[%clk 0:02:02]}  Rg6 {[%clk 0:00:53]} 22. Qh3 {[%clk 0:02:01]}  Nxe5 {[%clk 0:00:50]} 23. Be4 {[%clk 0:02:00]}  Rc8 {[%clk 0:00:34]} 24. Rg1 {[%clk 0:01:45]}  Rxg1+ {[%clk 0:00:16]} 25. Rxg1 {[%clk 0:01:46]}  h5 {[%clk 0:00:16]} 26. Rxg7 {[%clk 0:01:44]}  Kxg7 {[%clk 0:00:15]} 27. Bxe5+ {[%clk 0:01:44]}  Kh6 {[%clk 0:00:11]} 28. Qg3 {[%clk 0:01:27]}  Qf7 {[%clk 0:00:11]} 29. Bf4+ {[%clk 0:01:26]} 1-0


[Site "https://www.chess.com"]

[Event "Titled Tuesday Blitz May 2 Early 2023"]
[White "Mendez Fortes, Eduardo Jesus"]
[Black "Koridze, Lile"]
[WhiteFideId "3502376"]
[BlackFideId "13612514"]
[WhiteElo "2307"]
[BlackElo "2047"]
[Result "1-0"]
[Round "03"]
[TimeControl "180+2"]
[Date "2023.05.02"]
[WhiteClock "0:00:19"]
[BlackClock "0:00:07"]

1. e4 {[%clk 0:02:31]}  c5 {[%clk 0:02:58]} 2. Nf3 {[%clk 0:02:30]}  d6 {[%clk 0:02:58]} 3. d4 {[%clk 0:02:27]}  cxd4 {[%clk 0:02:59]} 4. Nxd4 {[%clk 0:02:28]}  Nf6 {[%clk 0:02:59]} 5. Nc3 {[%clk 0:02:27]}  a6 {[%clk 0:02:58]} 6. Bg5 {[%clk 0:02:27]}  e5 {[%clk 0:02:42]} 7. Nf5 {[%clk 0:02:21]}  Bxf5 {[%clk 0:02:38]} 8. Bxf6 {[%clk 0:02:21]}  Qxf6 {[%clk 0:02:38]} 9. Nd5 {[%clk 0:02:21]}  Qd8 {[%clk 0:02:33]} 10. exf5 {[%clk 0:02:21]}  Be7 {[%clk 0:02:33]} 11. a4 {[%clk 0:02:20]}  Nc6 {[%clk 0:02:31]} 12. Bc4 {[%clk 0:02:20]}  O-O {[%clk 0:02:31]} 13. c3 {[%clk 0:02:20]}  Rb8 {[%clk 0:02:13]} 14. O-O {[%clk 0:02:14]}  b5 {[%clk 0:02:13]} 15. axb5 {[%clk 0:02:09]}  axb5 {[%clk 0:02:14]} 16. Bb3 {[%clk 0:02:09]}  Bg5 {[%clk 0:01:43]} 17. Qf3 {[%clk 0:01:59]}  Na5 {[%clk 0:01:40]} 18. Ba2 {[%clk 0:01:44]}  Nc4 {[%clk 0:01:39]} 19. Qe2 {[%clk 0:01:40]}  Nb6 {[%clk 0:01:31]} 20. Nb4 {[%clk 0:01:36]}  Qd7 {[%clk 0:01:15]} 21. Bd5 {[%clk 0:01:33]}  Nxd5 {[%clk 0:01:11]} 22. Nxd5 {[%clk 0:01:34]}  Qxf5 {[%clk 0:01:11]} 23. Rfd1 {[%clk 0:01:28]}  Qe6 {[%clk 0:01:04]} 24. Ra7 {[%clk 0:01:18]}  Kh8 {[%clk 0:00:51]} 25. g3 {[%clk 0:00:58]}  Qe8 {[%clk 0:00:47]} 26. h4 {[%clk 0:00:56]}  Bd8 {[%clk 0:00:44]} 27. Qg4 {[%clk 0:00:53]}  Bb6 {[%clk 0:00:39]} 28. Ra6 {[%clk 0:00:52]}  Qd8 {[%clk 0:00:33]} 29. Rda1 {[%clk 0:00:45]}  Rb7 {[%clk 0:00:15]} 30. Qe4 {[%clk 0:00:41]}  Bc7 {[%clk 0:00:13]} 31. Nf6 {[%clk 0:00:27]}  Qxf6 {[%clk 0:00:13]} 32. Qxb7 {[%clk 0:00:27]}  Bd8 {[%clk 0:00:13]} 33. Qd5 {[%clk 0:00:24]}  Be7 {[%clk 0:00:13]} 34. Ra7 {[%clk 0:00:22]}  g6 {[%clk 0:00:13]} 35. Rd7 {[%clk 0:00:21]}  Rb8 {[%clk 0:00:12]} 36. Raa7 {[%clk 0:00:20]}  Re8 {[%clk 0:00:07]} 37. Qb7 {[%clk 0:00:20]}  Kg7 {[%clk 0:00:07]} 38. Rxe7 {[%clk 0:00:19]} 1-0


[Site "https://www.chess.com"]